fUST/lending_fUST_20260104
["ID","MTS","AMOUNT","RATE_DAILY","PERIOD"]
[400413191,1767528638247,-500.0,0.00010198,2]
[400413192,1767528638256,-370.11741916,0.00010198,2]
[400413193,1767528638266,-500.0,0.00010198,2]
[400413194,1767528638276,-500.0,0.00010198,2]
[400413195,1767528638286,-433.84503803,0.00010198,2]
[400413196,1767528638390,-500.0,0.00010198,2]
[400413197,1767528638420,-500.0,0.00010198,2]
[400413198,1767528638430,-222.44718128,0.00010198,2]
[400413199,1767528638440,-898.66175607,0.00010199,2]
[400413200,1767528638450,-300.0,0.00010199,2]
[400413201,1767528638459,-300.0,0.00010199,2]
[400413202,1767528638469,-300.0,0.00010199,2]
[400413203,1767528638479,-300.0,0.00010199,2]
[400413204,1767528638489,-300.0,0.00010199,2]
[400413205,1767528638499,-300.0,0.00010199,2]
[400413206,1767528638509,-300.0,0.00010199,2]
[400413207,1767528638519,-300.0,0.00010199,2]
[400413208,1767528638529,-300.0,0.00010199,2]
[400413209,1767528638539,-300.0,0.00010199,2]
[400413210,1767528638549,-300.0,0.00010199,2]
[400413211,1767528638559,-300.0,0.00010199,2]
[400413212,1767528638568,-300.0,0.00010199,2]
[400413213,1767528638578,-300.0,0.00010199,2]
[400413214,1767528638592,-300.0,0.00010199,2]
[400413215,1767528638601,-600.0,0.00010199,2]
[400413216,1767528638611,-563.12,0.0001037,2]
[400413217,1767528638621,-633.51,0.00010741,2]
[400413218,1767528638631,-500.0,0.0001087,2]
[400413219,1767528638640,-999.0,0.00010959,2]
[400413220,1767528638649,-3220.49904122,0.00010989,2]
[400413221,1767528638660,-703.9,0.00011111,2]
[400413222,1767528638670,-400.75171733,0.0001112,2]
[400413223,1767528638679,-420.0,0.00011214,2]
[400413224,1767528638689,-1453.0,0.00011217,2]
[400413225,1767528638698,-371.0,0.00011218,2]
[400413226,1767528638708,-720.0,0.00011219,2]
[400413227,1767528638718,-1603.00686931,0.00011504,2]
[400413228,1767528638729,-7448.4698315,0.0001154,2]
[400413229,1767528638739,-553.64373807,0.00011712,2]
[400413230,1767528638750,-250.0,0.00012,2]
[400413231,1767528638760,-446.00663046,0.0001205,2]
[400413232,1767528638769,-574.12855637,0.0001226,2]
[400413233,1767528638779,-171.0,0.00012333,2]
[400413234,1767528638790,-864.0,0.00012341,2]
[400413235,1767528638803,-3606.76545594,0.00012355,2]
[400413236,1767528638813,-357.34777258,0.00012601,2]
[400413237,1767528638823,-500.0,0.00012601,2]
[400413238,1767528638833,-500.0,0.00012601,2]
[400413239,1767528638843,-602.52074089,0.00012601,2]
[400413240,1767528638855,-500.0,0.00012601,2]
[400413241,1767528638866,-500.0,0.00012601,2]
[400413242,1767528638875,-500.0,0.00012601,2]
[400413243,1767528638885,-500.0,0.00012601,2]
[400413244,1767528638895,-500.0,0.00012601,2]
[400413245,1767528638905,-500.0,0.00012601,2]
[400413246,1767528638915,-500.0,0.00012601,2]
[400413247,1767528638924,-500.0,0.00012601,2]
[400413248,1767528638934,-500.0,0.00012601,2]
[400413249,1767528638943,-500.0,0.00012601,2]
[400413250,1767528638952,-500.0,0.00012601,2]
[400413251,1767528638962,-500.0,0.00012601,2]
[400413252,1767528638972,-500.0,0.00012601,2]
[400413253,1767528638981,-500.0,0.00012601,2]
[400413254,1767528638990,-269.5020641,0.00012601,2]
[400413255,1767528638999,-500.0,0.00012601,2]
[400413256,1767528639009,-500.0,0.00012601,2]
[400413257,1767528639019,-500.0,0.00012601,2]
[400413258,1767528639028,-500.0,0.00012601,2]
[400413259,1767528639039,-500.0,0.00012601,2]
[400413260,1767528639048,-650.0,0.00012601,2]
[400413261,1767528639058,-500.0,0.00012601,2]
[400413262,1767528639068,-500.0,0.00012601,2]
[400413263,1767528639078,-3952.89951062,0.00012602,2]
[400413264,1767528639088,-286.74,0.00012799,2]
[400413265,1767528639097,-167.99,0.00012799,2]
[400413266,1767528639108,-568.76020202,0.00012808,2]
[400413267,1767528639117,-168.0,0.00012826,2]
[400413268,1767528639127,-168.0,0.00012874,2]
[400413269,1767528639137,-168.0,0.00012886,2]
[400413270,1767528639147,-168.0,0.00012899,2]
[400413271,1767528639155,-5872.9386734,0.000129,2]
[400413272,1767528639165,-708.72413062,0.00012947,2]
[400413273,1767528639175,-7137.10260308,0.00013,2]
[400413274,1767528639185,-1401.7608747,0.00013014,2]
[400413275,1767528639195,-168.0,0.00013139,2]
[400413276,1767528639205,-168.0,0.000132,2]
[400413277,1767528639215,-6412.02747722,0.00013205,2]
[400413278,1767528639225,-500.0,0.00013273,2]
[400413279,1767528639236,-283.30399114,0.00013273,2]
[400413280,1767528639245,-500.0,0.00013273,2]
[400413281,1767528639255,-500.0,0.00013273,2]
[400413282,1767528639265,-500.0,0.00013273,2]
[400413283,1767528639274,-501.18185428,0.00013273,2]
[400413284,1767528639285,-500.0,0.00013273,2]
[400413285,1767528639295,-500.0,0.00013273,2]
[400413286,1767528639304,-500.0,0.00013273,2]
[400413287,1767528639314,-500.0,0.00013273,2]
[400413288,1767528639324,-500.19219879,0.00013273,2]
[400413289,1767528639334,-500.38620023,0.00013273,2]
[400413290,1767528639343,-500.0,0.00013273,2]
[400413291,1767528639352,-500.63153147,0.00013273,2]
[400413292,1767528639362,-500.0,0.00013273,2]
[400413293,1767528639371,-500.0,0.00013273,2]
[400413294,1767528639381,-500.0,0.00013273,2]
[400413295,1767528639390,-500.0,0.00013273,2]
[400413296,1767528639400,-500.0,0.00013273,2]
[400413297,1767528639410,-500.0,0.00013273,2]
[400413298,1767528639420,-465.72665652,0.00013273,2]
[400413299,1767528639430,-501.72577192,0.00013273,2]
[400413300,1767528639439,-500.0,0.00013273,2]
[400413301,1767528639449,-500.83974402,0.00013273,2]
[400413302,1767528639461,-500.0,0.00013273,2]
[400413303,1767528639471,-605.85604523,0.00013273,2]
[400413304,1767528639480,-500.0,0.00013273,2]
[400413305,1767528639490,-500.0,0.00013273,2]
[400413306,1767528639499,-501.46014836,0.00013273,2]
[400413307,1767528639510,-536.28809741,0.00013273,2]
[400413309,1767528639520,-171.55879211,0.00013273,2]
[400413310,1767528639529,-500.48772774,0.00013273,2]
[400413311,1767528639538,-500.12001375,0.00013273,2]
[400413312,1767528639547,-500.98834763,0.00013273,2]
[400413313,1767528639557,-500.19048745,0.00013273,2]
[400413314,1767528639566,-500.29667581,0.00013273,2]
[400413315,1767528639576,-232.36685052,0.00013273,2]
[400413316,1767528639589,-500.0,0.00013273,2]
[400413317,1767528639598,-500.53921028,0.00013273,2]
[400413318,1767528639608,-210.63907392,0.00013273,2]
[400413319,1767528639617,-185.40840266,0.00013273,2]
[400413320,1767528639627,-500.0,0.00013273,2]
[400413321,1767528639637,-500.0,0.00013273,2]
[400413322,1767528639646,-500.0,0.00013273,2]
[400413323,1767528639655,-500.0,0.00013273,2]
[400413324,1767528639666,-500.91624056,0.00013273,2]
[400413325,1767528639676,-500.92913972,0.00013273,2]
[400413326,1767528639686,-500.58173584,0.00013273,2]
[400413327,1767528639695,-500.0,0.00013273,2]
[400413328,1767528639705,-168.0,0.00013287,2]
[400413329,1767528639715,-168.0,0.00013353,2]
[400413331,1767528639726,-168.0,0.00013386,2]
[400413332,1767528639735,-1000.0,0.00013575,2]
[400413333,1767528639745,-168.0,0.00013653,2]
[400413334,1767528639755,-300.0,0.00013673,2]
[400413335,1767528639764,-948.899132,0.00013699,2]
[400413336,1767528639773,-500.0,0.00013699,2]
[400413337,1767528639782,-500.0,0.00013699,2]
[400413338,1767528639791,-500.0,0.00013699,2]
[400413339,1767528639801,-500.0,0.00013699,2]
[400413340,1767528639811,-500.0,0.00013699,2]
[400413341,1767528639820,-500.0,0.00013699,2]
[400413342,1767528639829,-500.84667986,0.00013699,2]
[400413343,1767528639839,-500.0,0.00013699,2]
[400413344,1767528639848,-481.66284912,0.00013699,2]
[400413345,1767528639858,-500.0,0.00013699,2]
[400413354,1767528639957,-168.0,0.0001371,2]
[400413355,1767528639967,-168.0,0.00013749,2]
[400413356,1767528639976,-1041.66666667,0.00013749,2]
[400413357,1767528639985,-168.0,0.00013752,2]
[400413358,1767528639994,-1000.0,0.00013821,2]
[400413359,1767528640003,-438.76198679,0.00013821,2]
[400413360,1767528640014,-1000.0,0.00013821,2]
[400413361,1767528640023,-1000.0,0.00013821,2]
[400413362,1767528640032,-1000.0,0.00013821,2]
[400413363,1767528640041,-1000.0,0.00013821,2]
[400413364,1767528640050,-1000.0,0.00013821,2]
[400413365,1767528640059,-514.04154019,0.0001405,2]
[400413366,1767528640068,-1897.31041191,0.00014175,2]
[400413367,1767528640078,-151.0,0.000142,2]
[400413368,1767528640087,-151.0,0.000142,2]
[400413369,1767528640096,-151.0,0.000142,2]
[400413371,1767528640106,-151.0,0.000142,2]
[400413372,1767528640115,-151.0,0.000142,2]
[400413373,1767528640124,-151.0,0.000142,2]
[400413375,1767528640133,-600.0,0.00014221,2]
[400413376,1767528640142,-1000.0,0.00014247,2]
[400413377,1767528640152,-1000.0,0.00014247,2]
[400413378,1767528640161,-1000.0,0.00014247,2]
[400413379,1767528640170,-1000.0,0.00014247,2]
[400413381,1767528640179,-1000.0,0.00014247,2]
[400413382,1767528640188,-1000.0,0.00014247,2]
[400413384,1767528640197,-1000.0,0.00014247,2]
[400413386,1767528640207,-1000000.0,0.00014249,2]
[400413388,1767528640216,-628.0,0.00014253,2]
[400413390,1767528640226,-2169.0,0.00014253,2]
[400413392,1767528640235,-1365.0,0.00014253,2]
[400413394,1767528640246,-714.0,0.00014253,2]
[400413396,1767528640256,-194.729,0.00014253,2]
[400413398,1767528640266,-416.0,0.00014253,2]
[400413400,1767528640275,-5451.0,0.00014257,2]
[400413402,1767528640286,-150.683,0.0001435,2]
[400413404,1767528640296,-1500.0,0.00014368,2]
[400413406,1767528640305,-1500.0,0.00014368,2]
[400413408,1767528640314,-1500.0,0.00014368,2]
[400413410,1767528640324,-1500.0,0.00014368,2]
[400413412,1767528640334,-1500.0,0.00014368,2]
[400413414,1767528640344,-854.76768455,0.00014368,2]
[400413416,1767528640353,-153.108,0.00014768,2]
[400413418,1767528640362,-900.0,0.00014768,2]
[400413420,1767528640371,-1169.1909469,0.00014795,2]
[400413422,1767528640381,-1500.0,0.00014795,2]
[400413424,1767528640391,-1500.0,0.00014795,2]
[400413426,1767528640400,-1500.0,0.00014795,2]
[400413428,1767528640410,-1500.0,0.00014795,2]
[400413430,1767528640419,-1500.0,0.00014795,2]
[400413432,1767528640429,-1500.0,0.00014795,2]
[400413434,1767528640438,-500.0,0.00014916,2]
[400413435,1767528640447,-2000.0,0.00014916,2]
[400413437,1767528640457,-2000.0,0.00014916,2]
[400413439,1767528640467,-1891.0513895,0.00014916,2]
[400413441,1767528640477,-1098.44792801,0.00014916,2]
[400413443,1767528640486,-1000.0,0.00014932,2]
[400413445,1767528640496,-244.0,0.00014932,2]
[400413447,1767528640505,-5872.93867339,0.00015218,2]
[400413449,1767528640514,-1200.0,0.00015316,2]
[400413451,1767528640524,-1521.26225949,0.00015342,2]
[400413453,1767528640533,-1558.12211568,0.00015342,2]
[400413455,1767528640542,-2000.0,0.00015342,2]
[400413457,1767528640551,-2000.0,0.00015342,2]
[400413459,1767528640560,-2000.0,0.00015342,2]
[400413461,1767528640569,-2000.0,0.00015342,2]
[400413463,1767528640579,-279.0,0.00015425,3]
[400413465,1767528640591,-2500.0,0.00015464,2]
[400413467,1767528640600,-2500.0,0.00015464,2]
[400413469,1767528640610,-1500.0,0.00015864,2]
[400413471,1767528640620,-2500.0,0.0001589,2]
[400413473,1767528640631,-2500.0,0.0001589,2]
[400413475,1767528640640,-2500.0,0.0001589,2]
[400413477,1767528640650,-2500.0,0.0001589,2]
[400413479,1767528640661,-735.0,0.000159,2]
[400413481,1767528640671,-3000.0,0.00016012,2]
[400413483,1767528640681,-3000.0,0.00016012,2]
[400413484,1767528640690,-582.07644993,0.0001605,2]
[400413486,1767528640700,-1800.0,0.00016412,2]
[400413488,1767528640709,-1000.0,0.00016426,2]
[400413490,1767528640719,-492.0,0.00016426,2]
[400413492,1767528640728,-352.2,0.00016438,2]
[400413494,1767528640737,-500.0,0.00016438,2]
[400413496,1767528640747,-500.0,0.00016438,2]
[400413498,1767528640756,-500.0,0.00016438,2]
[400413500,1767528640765,-269.20866725,0.00016438,2]
[400413502,1767528640775,-500.0,0.00016438,2]
[400413504,1767528640784,-500.0,0.00016438,2]
[400413506,1767528640793,-500.0,0.00016438,2]
[400413508,1767528640803,-500.0,0.00016438,2]
[400413509,1767528640812,-500.0,0.00016438,2]
[400413511,1767528640821,-500.0,0.00016438,2]
[400413513,1767528640830,-500.0,0.00016438,2]
[400413515,1767528640840,-500.0,0.00016438,2]
[400413517,1767528640849,-500.0,0.00016438,2]
[400413519,1767528640861,-500.0,0.00016438,2]
[400413521,1767528640874,-500.0,0.00016438,2]
[400413523,1767528640885,-500.0,0.00016438,2]
[400413525,1767528640895,-3000.0,0.00016438,2]
[400413526,1767528640906,-3000.0,0.00016438,2]
[400413528,1767528640915,-3000.0,0.00016438,2]
[400413530,1767528640925,-3000.0,0.00016438,2]
[400413532,1767528640935,-200.0,0.00016473,2]
[400413534,1767528640945,-3500.0,0.0001656,2]
[400413536,1767528640955,-3500.0,0.0001656,2]
[400413538,1767528640966,-898.0,0.000166,2]
[400413540,1767528640975,-160.0,0.00016671,3]
[400413542,1767528640985,-352.2,0.00016762,2]
[400413544,1767528640994,-900.0,0.0001696,2]
[400413546,1767528641004,-3500.0,0.00016986,2]
[400413548,1767528641013,-3500.0,0.00016986,2]
[400413550,1767528641023,-3018.27095848,0.00016986,2]
[400413552,1767528641034,-3500.0,0.00016986,2]
[400413554,1767528641043,-160.0,0.00017041,4]
[400413556,1767528641053,-228.0,0.00017068,3]
[400413558,1767528641063,-352.2,0.00017086,2]
[400413560,1767528641072,-4000.0,0.00017108,2]
[400413562,1767528641088,-4000.0,0.00017108,2]
[400413564,1767528641103,-628.0,0.00017253,2]
[400413566,1767528641113,-2145.0,0.00017253,2]
[400413568,1767528641122,-1365.0,0.00017253,2]
[400413570,1767528641131,-714.0,0.00017253,2]
[400413572,1767528641141,-178.0,0.00017253,2]
[400413574,1767528641151,-416.0,0.00017253,2]
[400413576,1767528641161,-2407.539377,0.00017255,2]
[400413578,1767528641171,-352.2,0.00017409,2]
[400413580,1767528641180,-160.0,0.0001741,5]
[400413582,1767528641189,-2407.539377,0.0001749,2]
[400413583,1767528641198,-1000.0,0.00017534,2]
[400413585,1767528641208,-1000.0,0.00017534,2]
[400413587,1767528641219,-1000.0,0.00017534,2]
[400413589,1767528641228,-500.0,0.00017656,2]
[400413591,1767528641239,-4500.0,0.00017656,2]
[400413593,1767528641257,-352.2,0.00017733,2]
[400413595,1767528641270,-2407.539377,0.00017773,2]
[400413597,1767528641282,-160.0,0.0001778,6]
[400413608,1767528641384,-279.48316518,0.00017842,2]
[400413610,1767528641395,-2407.539377,0.00017907,2]
[400413611,1767528641405,-650.11135966,0.0001805,2]
[400413612,1767528641416,-352.2,0.00018057,2]
[400413613,1767528641427,-1000.0,0.00018068,2]
[400413614,1767528641438,-791.0,0.00018068,2]
[400413615,1767528641448,-4602.61026958,0.00018077,30]
[400413616,1767528641459,-203.765275,0.00018082,2]
[400413617,1767528641469,-177.762758,0.00018082,2]
[400413618,1767528641479,-177.762758,0.00018082,2]
[400413619,1767528641488,-177.762758,0.00018082,2]
[400413620,1767528641498,-177.762758,0.00018082,2]
[400413621,1767528641508,-2407.539377,0.00018082,2]
[400413622,1767528641517,-250000.0,0.00018082,3]
[400413623,1767528641527,-160.0,0.0001815,7]
[400413624,1767528641537,-1500.0,0.00018204,2]
[400413625,1767528641547,-600.0,0.00018356,7]
[400413626,1767528641557,-352.2,0.00018381,2]
[400413627,1767528641567,-277.0,0.00018498,2]
[400413628,1767528641578,-160.0,0.0001852,8]
[400413629,1767528641591,-2407.539377,0.00018627,2]
[400413630,1767528641601,-5872.93867339,0.00018686,2]
[400413631,1767528641612,-352.2,0.00018705,2]
[400413632,1767528641623,-231.0,0.00018712,3]
[400413633,1767528641633,-321.0,0.00018717,2]
[400413634,1767528641643,-2407.539377,0.00018798,2]
[400413635,1767528641655,-408.0,0.00018875,2]
[400413636,1767528641667,-160.0,0.0001889,9]
[400413637,1767528641678,-303.21829838,0.000189,2]
[400413638,1767528641687,-303.22133247,0.000189,2]
[400413639,1767528641696,-2407.539377,0.0001894,2]
[400413640,1767528641706,-500.0,0.00019,2]
[400413641,1767528641715,-500.0,0.00019,2]
[400413642,1767528641725,-195.37849352,0.00019,2]
[400413643,1767528641734,-312.08,0.00019026,2]
[400413644,1767528641744,-352.2,0.00019029,2]
[400413645,1767528641754,-303.21829838,0.00019089,2]
[400413646,1767528641763,-303.22133247,0.00019089,2]
[400413647,1767528641773,-399.84,0.00019178,2]
[400413648,1767528641783,-399.84,0.00019178,2]
[400413649,1767528641792,-399.84,0.00019178,2]
[400413650,1767528641802,-399.84,0.00019178,2]
[400413651,1767528641811,-399.84,0.00019178,2]
[400413653,1767528641820,-399.84,0.00019178,2]
[400413654,1767528641829,-399.84,0.00019178,2]
[400413655,1767528641838,-399.84,0.00019178,2]
[400413656,1767528641847,-2000.0,0.00019178,3]
[400413657,1767528641858,-399.84,0.00019178,2]
[400413658,1767528641867,-399.84,0.00019178,2]
[400413659,1767528641877,-399.84,0.00019178,2]
[400413660,1767528641887,-399.84,0.00019178,2]
[400413661,1767528641896,-399.84,0.00019178,2]
[400413662,1767528641906,-399.84,0.00019178,2]
[400413663,1767528641915,-399.84,0.00019178,2]
[400413664,1767528641924,-399.84,0.00019178,2]
[400413665,1767528641933,-399.84,0.00019178,2]
[400413666,1767528641943,-399.84,0.00019178,2]
[400413667,1767528641952,-399.84,0.00019178,2]
[400413668,1767528641962,-399.84,0.00019178,2]
[400413669,1767528641971,-399.84,0.00019178,2]
[400413670,1767528641980,-399.84,0.00019178,2]
[400413671,1767528641990,-399.84,0.00019178,2]
[400413672,1767528641999,-399.84,0.00019178,2]
[400413673,1767528642009,-399.84,0.00019178,2]
[400413674,1767528642019,-399.84,0.00019178,2]
[400413675,1767528642028,-991.54778445,0.00019178,3]
[400413676,1767528642037,-399.84,0.00019178,2]
[400413677,1767528642047,-399.84,0.00019178,2]
[400413678,1767528642057,-399.84,0.00019178,2]
[400413679,1767528642067,-399.84,0.00019178,2]
[400413680,1767528642076,-399.84,0.00019178,2]
[400413681,1767528642085,-399.84,0.00019178,2]
[400413682,1767528642094,-399.84,0.00019178,2]
[400413683,1767528642103,-399.84,0.00019178,2]
[400413684,1767528642113,-399.84,0.00019178,2]
[400413685,1767528642123,-399.84,0.00019178,2]
[400413686,1767528642132,-399.84,0.00019178,2]
[400413687,1767528642142,-399.84,0.00019178,2]
[400413688,1767528642153,-399.84,0.00019178,2]
[400413689,1767528642162,-151.0,0.00019178,2]
[400413690,1767528642172,-151.0,0.00019178,2]
[400413691,1767528642181,-151.0,0.00019178,2]
[400413692,1767528642190,-151.0,0.00019178,2]
[400413693,1767528642199,-151.0,0.00019178,2]
[400413694,1767528642209,-151.0,0.00019178,2]
[400413696,1767528642219,-164.094965,0.00019178,2]
[400413697,1767528642229,-164.094965,0.00019178,2]
[400413698,1767528642239,-164.094965,0.00019178,2]
[400413699,1767528642249,-164.094965,0.00019178,2]
[400413700,1767528642259,-181.542051,0.00019178,2]
[400413701,1767528642268,-181.542051,0.00019178,2]
[400413702,1767528642277,-151.0,0.00019178,2]
[400413703,1767528642287,-181.542051,0.00019178,2]
[400413704,1767528642297,-151.0,0.00019178,2]
[400413705,1767528642306,-181.542051,0.00019178,2]
[400413706,1767528642315,-151.0,0.00019178,2]
[400413707,1767528642324,-167.488879,0.00019178,2]
[400413708,1767528642335,-197.506582,0.00019178,2]
[400413709,1767528642344,-151.0,0.00019178,2]
[400413710,1767528642354,-2878.100982,0.00019178,2]
[400413711,1767528642363,-166.709835,0.00019178,2]
[400413712,1767528642373,-2878.100982,0.00019178,2]
[400413713,1767528642382,-166.709835,0.00019178,2]
[400413714,1767528642391,-2878.100982,0.00019178,2]
[400413715,1767528642402,-166.709835,0.00019178,2]
[400413716,1767528642412,-2878.100982,0.00019178,2]
[400413717,1767528642421,-166.709835,0.00019178,2]
[400413718,1767528642431,-362.084388,0.00019178,2]
[400413719,1767528642441,-362.084388,0.00019178,2]
[400413720,1767528642451,-362.084388,0.00019178,2]
[400413721,1767528642460,-362.084388,0.00019178,2]
[400413722,1767528642469,-1303.673153,0.00019178,2]
[400413723,1767528642479,-1303.673153,0.00019178,2]
[400413724,1767528642489,-1303.673153,0.00019178,2]
[400413725,1767528642498,-1303.673153,0.00019178,2]
[400413726,1767528642508,-339.63469,0.00019178,2]
[400413727,1767528642517,-339.63469,0.00019178,2]
[400413728,1767528642526,-339.63469,0.00019178,2]
[400413729,1767528642535,-339.63469,0.00019178,2]
[400413730,1767528642544,-388.730026,0.00019178,2]
[400413731,1767528642554,-388.730026,0.00019178,2]
[400413732,1767528642563,-388.730026,0.00019178,2]
[400413733,1767528642573,-388.730026,0.00019178,2]
[400413734,1767528642583,-1299.235447,0.00019178,2]
[400413735,1767528642596,-1299.235447,0.00019178,2]
[400413736,1767528642605,-1299.235447,0.00019178,2]
[400413737,1767528642706,-1299.235447,0.00019178,2]
[400413738,1767528642716,-362.648304,0.00019178,2]
[400413739,1767528642725,-362.648304,0.00019178,2]
[400413740,1767528642734,-362.648304,0.00019178,2]
[400413741,1767528642743,-362.648304,0.00019178,2]
[400413742,1767528642753,-557.532317,0.00019178,2]
[400413743,1767528642762,-557.532317,0.00019178,2]
[400413744,1767528642772,-557.532317,0.00019178,2]
[400413745,1767528642781,-151.0,0.00019178,2]
[400413746,1767528642791,-557.532317,0.00019178,2]
[400413747,1767528642800,-151.0,0.00019178,2]
[400413748,1767528642811,-441.528202,0.00019178,2]
[400413749,1767528642821,-441.528202,0.00019178,2]
[400413750,1767528642830,-151.0,0.00019178,2]
[400413751,1767528642839,-441.528202,0.00019178,2]
[400413752,1767528642848,-151.0,0.00019178,2]
[400413753,1767528642857,-441.528202,0.00019178,2]
[400413754,1767528642867,-151.0,0.00019178,2]
[400413755,1767528642876,-151.0,0.00019178,2]
[400413756,1767528642886,-151.0,0.00019178,2]
[400413757,1767528642895,-151.0,0.00019178,2]
[400413758,1767528642904,-151.0,0.00019178,2]
[400413759,1767528642913,-465.090217,0.00019178,2]
[400413760,1767528642923,-465.090217,0.00019178,2]
[400413761,1767528642932,-294.216326,0.00019178,2]
[400413762,1767528642941,-465.090217,0.00019178,2]
[400413763,1767528642950,-294.216326,0.00019178,2]
[400413764,1767528642960,-465.090217,0.00019178,2]
[400413765,1767528642969,-294.216326,0.00019178,2]
[400413766,1767528642978,-294.216326,0.00019178,2]
[400413767,1767528642987,-151.0,0.00019178,2]
[400413768,1767528642996,-151.0,0.00019178,2]
[400413769,1767528643006,-187.138243,0.00019178,2]
[400413770,1767528643016,-187.138243,0.00019178,2]
[400413771,1767528643026,-187.138243,0.00019178,2]
[400413772,1767528643035,-533.386645,0.00019178,2]
[400413773,1767528643045,-430.230833,0.00019178,2]
[400413774,1767528643054,-187.138243,0.00019178,2]
[400413775,1767528643063,-533.386645,0.00019178,2]
[400413776,1767528643072,-430.230833,0.00019178,2]
[400413777,1767528643082,-533.386645,0.00019178,2]
[400413778,1767528643091,-430.230833,0.00019178,2]
[400413779,1767528643100,-533.386645,0.00019178,2]
[400413780,1767528643110,-430.230833,0.00019178,2]
[400413781,1767528643120,-194.702614,0.00019178,2]
[400413782,1767528643130,-36465.78,0.000192,2]
[400413783,1767528643139,-3653.72,0.000192,2]
[400413784,1767528643149,-301.99,0.000192,2]
[400413785,1767528643158,-286.51,0.000192,2]
[400413786,1767528643167,-500.0,0.000192,2]
[400413787,1767528643176,-167.7,0.000192,2]
[400413788,1767528643186,-600.0,0.000192,2]
[400413789,1767528643195,-2407.539377,0.00019216,2]
[400413790,1767528643205,-160.0,0.0001926,10]
[400413791,1767528643215,-303.21829838,0.00019278,2]
[400413793,1767528643225,-303.22133247,0.00019278,2]
[400413795,1767528643235,-300.0,0.00019315,2]
[400413797,1767528643244,-352.2,0.00019352,2]
[400413799,1767528643254,-600.0,0.00019452,7]
[400413801,1767528643264,-450.18747993,0.00019452,2]
[400413802,1767528643274,-303.21829838,0.00019467,2]
[400413804,1767528643283,-303.22133247,0.00019467,2]
[400413805,1767528643293,-1774.899659,0.000195,2]
[400413806,1767528643303,-687.77681332,0.000196,2]
[400413807,1767528643312,-160.0,0.0001963,11]
[400413808,1767528643323,-303.21829838,0.00019656,2]
[400413809,1767528643332,-303.22133247,0.00019656,2]
[400413810,1767528643342,-352.2,0.00019676,2]
[400413811,1767528643351,-2407.539377,0.00019694,2]
[400413812,1767528643361,-1230.288301,0.0001976,5]
[400413813,1767528643371,-1000.0,0.0001978,5]
[400413815,1767528643380,-1000.0,0.000198,5]
[400413816,1767528643389,-1000.0,0.0001982,5]
[400413817,1767528643400,-1000.0,0.0001984,5]
[400413818,1767528643410,-454.82744756,0.00019845,4]
[400413819,1767528643419,-454.8319987,0.00019845,4]
[400413820,1767528643428,-1000.0,0.0001986,5]
[400413821,1767528643439,-1000.0,0.00019875,2]
[400413822,1767528643449,-1000.0,0.00019875,2]
[400413823,1767528643458,-1000.0,0.0001988,5]
[400413824,1767528643467,-1000.0,0.000199,5]
[400413825,1767528643477,-1000.0,0.0001992,5]
[400413826,1767528643486,-1000.0,0.0001994,5]
[400413827,1767528643495,-2407.539386,0.00019957,2]
[400413828,1767528643504,-1068.38538,0.0001996,5]